bitfinex/quotes_SOLUSD_20250704
["timestamp","ask_amount","ask_price","bid_price","bid_amount"]
[1751599293906,0.1,151.92,151.91,13.03235429]
[1751599295126,2.1,151.94,151.93,6.24950919]
[1751599296203,2.1,151.94,151.92,12.83162221]
[1751599297732,2.1,151.94,151.92,6.58211302]
[1751599297901,2.1,151.94,151.92,12.83162221]
[1751599298621,2.1,151.94,151.93,6.24950919]
[1751599300336,2.1,151.94,151.93,12.83148773]
[1751599300832,2.1,151.94,151.93,6.24950919]
[1751599301032,2.1,151.94,151.92,12.83173552]
[1751599301943,2.1,151.94,151.92,6.58222633]
[1751599302113,2.1,151.94,151.92,12.83173552]
[1751599303913,2.1,151.94,151.92,10.57869814]
[1751599304236,2.1,151.94,151.92,6.58222633]
[1751599304436,2.1,151.94,151.92,10.57869814]
[1751599304938,2.2,151.94,151.92,10.57869814]
[1751599308121,2.2,151.94,151.93,3.99647181]
[1751599310321,2.2,151.94,151.93,10.57845035]
[1751599313845,2.2,151.94,151.93,12.82274191]
[1751599318957,2.2,151.94,151.93,6.58197854]
[1751599319328,2.2,151.94,151.93,12.82274191]
[1751599322657,2.2,151.94,151.92,6.58241179]
[1751599322956,2.2,151.94,151.93,6.24076337]
[1751599323656,2.2,151.94,151.93,12.82274191]
[1751599326273,2.2,151.94,151.92,26.0]
[1751599327149,2.2,151.94,151.92,32.24076337]
[1751599328155,2.2,151.94,151.92,38.82313534]
[1751599328952,2.2,151.94,151.93,6.24076337]
[1751599329965,2.2,151.94,151.93,12.82274191]
[1751599330868,2.2,151.94,151.93,6.58197854]
[1751599331047,2.2,151.94,151.93,12.82274191]
[1751599332566,2.2,151.94,151.93,6.58197854]
[1751599335170,2.2,151.94,151.92,26.0]
[1751599335366,6.1958883,151.94,151.91,0.2]
[1751599335570,2.2,151.94,151.91,6.78283671]
[1751599335753,2.2,151.94,151.92,3.9958883]
[1751599337069,2.2,151.94,151.92,10.57812353]
[1751599338777,2.2,151.94,151.92,6.58223523]
[1751599339075,2.2,151.94,151.93,0.2]
[1751599339964,6.1958883,151.94,151.93,0.2]
[1751599340273,2.2,151.94,151.93,0.2]
[1751599361165,2.2,151.94,151.93,6.78197854]
[1751599362286,2.2,151.94,151.93,0.2]
[1751599364480,12.77743364,151.94,151.93,0.2]
[1751599364791,6.1958883,151.94,151.93,0.2]
[1751599366403,2.2,151.94,151.93,0.2]
[1751599377412,2.2,151.94,151.93,10.77786684]
[1751599381008,2.2,151.94,151.93,6.78197854]
[1751599381910,2.2,151.94,151.93,0.2]
[1751599382413,2.2,151.94,151.93,6.78197854]
[1751599390322,2.2,151.94,151.93,0.2]
[1751599398410,12.77743364,151.94,151.93,0.2]
[1751599401425,6.1958883,151.94,151.93,0.2]
[1751599403827,2.2,151.94,151.93,0.2]
[1751599404020,6.1958883,151.94,151.93,0.2]
[1751599407818,12.77743364,151.94,151.93,0.2]
[1751599408518,8.78154534,151.94,151.93,0.2]
[1751599408713,12.77743364,151.94,151.93,0.2]
[1751599411132,8.78154534,151.94,151.93,0.2]
[1751599411340,2.2,151.94,151.93,0.2]
[1751599444443,2.2,151.94,151.93,10.77786684]
[1751599444634,2.2,151.94,151.93,4.1958883]
[1751599445452,2.2,151.94,151.93,10.77786684]
[1751599446079,2.2,151.94,151.93,6.78197854]
[1751599446261,2.2,151.94,151.93,10.77786684]
[1751599449563,2.2,151.94,151.93,4.1958883]
[1751599451059,2.2,151.94,151.93,0.2]
[1751599451259,2.2,151.94,151.93,4.1958883]
[1751599451456,2.2,151.94,151.93,0.2]
[1751599486070,6.1958883,151.94,151.93,0.2]
[1751599491895,12.77743364,151.94,151.93,0.2]
[1751599492594,6.1958883,151.94,151.93,0.2]
[1751599493171,2.2,151.94,151.93,0.2]
[1751599494698,8.78154534,151.94,151.93,0.2]
[1751599494996,12.77743364,151.94,151.93,0.2]
[1751599499797,8.78154534,151.94,151.93,0.2]
[1751599499976,12.77743364,151.94,151.93,0.2]
[1751599500999,8.78154534,151.94,151.93,0.2]
[1751599503209,2.2,151.94,151.93,0.2]
[1751599506005,12.77743364,151.94,151.93,0.2]
[1751599508781,2.2,151.94,151.93,0.2]
[1751599511185,2.2,151.94,151.93,10.77786684]
[1751599513118,2.2,151.94,151.93,6.78197854]
[1751599513321,2.2,151.94,151.93,10.77786684]
[1751599515216,2.2,151.94,151.93,0.2]
[1751599515523,2.2,151.94,151.93,4.1958883]
[1751599517519,2.2,151.94,151.93,0.2]
[1751599531335,6.1958883,151.94,151.93,0.2]
[1751599532038,12.77743364,151.94,151.93,0.2]
[1751599543444,8.78154534,151.94,151.93,0.2]
[1751599551759,2.2,151.94,151.93,0.2]
[1751599552061,2.2,151.94,151.93,4.1958883]
[1751599552356,2.2,151.94,151.93,10.92002841]
[1751599552525,2.2,151.94,151.93,37.20435155]
[1751599552722,0.1,152.01,151.97,0.14216157]
[1751599552943,0.1,152.01,152.0,3.9958883]
[1751599553155,0.1,152.01,152.0,20.12160307]
[1751599553326,1.3882092,152.02,152.01,0.14216157]
[1751599553526,1.3882092,152.02,152.01,4.42237301]
[1751599553738,6.57475052,152.1,152.01,32.05907301]
[1751599553934,6.57475052,152.1,152.07,3.9958883]
[1751599554335,6.57475052,152.1,152.06,3.9958883]
[1751599555353,6.57475052,152.1,152.05,6.57674212]
[1751599555656,6.57475052,152.1,152.07,3.9958883]
[1751599555841,6.57435689,152.11,152.04,6.71928086]
[1751599556043,6.57435689,152.11,152.08,6.23232363]
[1751599556557,12.80668052,152.11,152.07,6.23232363]
[1751599557145,6.23232363,152.1,152.06,6.23232363]
[1751599558051,6.23232363,152.1,152.05,6.23232363]
[1751599558253,6.57435689,152.11,152.05,6.23232363]
[1751599558449,6.57435689,152.11,152.07,6.23232363]
[1751599558690,0.28432314,152.15,152.08,6.23232363]
[1751599558849,0.14216157,152.15,152.08,6.23232363]
[1751599559050,6.57375755,152.12,152.08,6.23232363]
[1751599559254,6.57375755,152.12,152.06,6.57596474]
[1751599559558,6.57375755,152.12,152.08,6.23232363]
[1751599559757,12.80577382,152.13,152.09,6.23232363]
[1751599560155,6.23232363,152.12,152.08,6.23232363]
[1751599561139,6.57396815,152.12,152.08,6.23232363]
[1751599561338,12.80629178,152.12,152.08,6.23232363]
[1751599563544,6.23232363,152.1,152.05,6.0572]
[1751599563750,6.23232363,152.1,152.05,6.23232363]
[1751599563974,6.57396815,152.12,152.05,6.23232363]
[1751599564366,6.23232363,152.1,152.05,6.23232363]
[1751599564963,12.80737787,152.09,152.05,6.23232363]
[1751599565170,6.23232363,152.08,152.04,32.23232363]
[1751599565664,0.14216157,152.15,152.07,6.23232363]
[1751599565854,6.23232363,152.14,152.06,0.14216157]
[1751599566052,6.23232363,152.13,152.08,6.23232363]
[1751599566654,6.57375755,152.12,152.08,6.23232363]
[1751599570977,12.80608118,152.12,152.07,6.23232363]
[1751599571477,12.90608118,152.12,152.07,6.23232363]
[1751599573559,6.67375755,152.12,152.07,6.23232363]
[1751599575086,6.67375755,152.12,152.05,1.76606157]
[1751599575087,6.23232363,152.08,152.02,6.23232363]
[1751599575279,6.23232363,152.07,152.02,6.23232363]
[1751599575584,6.23232363,152.07,152.03,6.23232363]
[1751599576467,12.80826714,152.07,152.03,6.23232363]
[1751599578284,6.57594351,152.07,152.03,6.23232363]
[1751599578892,23.01120053,152.1,152.03,6.23232363]
[1751599579180,6.23232363,152.08,152.03,6.23232363]
[1751599579984,6.23232363,152.08,152.04,6.23232363]
[1751599580775,23.01120053,152.1,152.04,6.23232363]
[1751599580958,12.80807023,152.08,152.04,6.23232363]
[1751599581787,6.5757466,152.08,152.04,6.23232363]
[1751599584586,6.5757466,152.08,152.03,12.80988872]
[1751599585408,6.5757466,152.08,152.03,6.23232363]
[1751599585566,12.80807023,152.08,152.03,6.23232363]
[1751599586573,12.80807023,152.08,152.02,12.81023152]
[1751599587391,12.80807023,152.08,152.02,13.01023152]
[1751599588681,12.80807023,152.08,152.03,6.23232363]
[1751599593389,12.80807023,152.08,152.02,0.2]
[1751599593390,12.80910758,152.05,152.02,0.2]
[1751599593591,6.23232363,152.03,152.02,0.2]
[1751599596092,12.80997277,152.03,152.02,0.2]
[1751599606900,16.44195988,152.05,152.02,0.2]
[1751599607195,6.23232363,152.03,152.02,0.2]
[1751599608491,12.80997277,152.03,152.02,0.2]
[1751599609084,6.57764914,152.03,152.02,0.2]
[1751599609287,12.80997277,152.03,152.02,0.2]
[1751599614709,6.57764914,152.03,152.02,0.2]
[1751599614912,12.80997277,152.03,152.02,0.2]
[1751599621807,12.90997277,152.03,152.02,0.2]
[1751599622183,6.67764914,152.03,152.02,0.2]
[1751599625814,10.67097278,152.03,152.02,0.2]
[1751599627596,6.67764914,152.03,152.02,0.2]
[1751599630619,10.67097278,152.03,152.02,0.2]
[1751599639011,15.58982883,152.03,152.02,0.2]
[1751599639214,10.67097278,152.03,152.02,0.2]
[1751599639597,15.58982883,152.03,152.02,0.2]
[1751599639798,10.67097278,152.03,152.02,0.2]
[1751599640215,15.58982883,152.03,152.02,0.2]
[1751599640410,10.67097278,152.03,152.02,0.2]
[1751599641704,15.58982883,152.03,152.02,0.2]
[1751599641928,10.67097278,152.03,152.02,0.2]
[1751599642925,15.58982883,152.03,152.02,0.2]
[1751599643134,0.1,152.03,152.02,10.77140547]
[1751599643510,0.1,152.03,152.02,6.77808183]
[1751599643713,0.1,152.03,152.02,10.77140547]
[1751599645528,4.09332364,152.03,152.02,0.2]
[1751599646241,10.67097278,152.03,152.02,0.2]
[1751599647907,12.91705165,152.03,152.02,0.2]
[1751599648421,0.1,152.03,152.02,0.2]
[1751599655039,6.67764914,152.03,152.02,0.2]
[1751599655931,6.33940251,152.03,152.02,0.2]
[1751599656336,0.1,152.03,152.02,0.2]
[1751599660220,6.33940251,152.03,152.02,0.2]
[1751599661344,12.91705165,152.03,152.02,0.2]
[1751599665840,6.67764914,152.03,152.02,0.2]
[1751599666032,12.91705165,152.03,152.02,0.2]
[1751599666232,6.67764914,152.03,152.02,0.2]
[1751599668650,0.1,152.03,152.02,0.2]
[1751599674936,0.1,152.03,152.02,4.19268341]
[1751599675137,0.1,152.03,152.02,0.2]
[1751599677159,0.1,152.03,152.02,4.19268341]
[1751599678962,0.1,152.03,152.02,0.2]
[1751599679262,0.1,152.03,152.02,10.77076524]
[1751599682274,0.1,152.03,152.02,0.2]
[1751599685065,0.1,152.03,152.02,6.77808183]
[1751599685648,0.1,152.03,152.02,10.77076524]
[1751599688168,0.1,152.03,152.02,4.19268341]
[1751599689467,0.1,152.03,152.02,10.77076524]
[1751599698284,0.1,152.03,152.02,10.91292681]
[1751599700764,0.1,152.03,152.02,0.2]
[1751599700972,0.1,152.03,152.02,4.19268341]
[1751599707078,0.1,152.03,152.02,36.77076524]
[1751599711257,0.1,152.03,152.02,36.91292681]
[1751599715272,0.1,152.03,152.02,70.13292681]
[1751599718984,1e-08,152.03,152.02,70.41724995]
[1751599721381,0.1,152.09,152.03,0.42648471]
[1751599721587,0.1,152.09,152.08,3.99268341]
[1751599730274,0.1,152.09,152.08,10.56816999]
[1751599730776,0.1,152.09,152.07,10.56840455]
[1751599731183,0.1,152.09,152.06,3.99268341]
[1751599732199,0.1,152.09,152.06,10.56891364]
[1751599735695,0.1,152.09,152.06,3.99268341]
[1751599741497,0.1,152.09,152.05,6.57659408]
[1751599741707,0.1,152.09,152.06,3.99268341]
[1751599746410,6.67514793,152.09,152.05,29.99268341]
[1751599748008,10.66783134,152.09,152.05,29.99268341]
[1751599756624,10.66783134,152.09,152.05,26.0]
[1751599759125,6.67514793,152.09,152.05,29.99268341]
[1751599761353,6.67514793,152.09,152.05,36.56937105]
[1751599761525,6.67514793,152.09,152.06,3.99268341]
[1751599763235,10.66783134,152.09,152.05,26.0]
[1751599763424,3.99268341,152.08,152.03,4.19268341]
[1751599763627,6.67514793,152.09,152.03,6.77746721]
[1751599763925,3.99268341,152.08,152.03,6.77746721]
[1751599764728,6.5755798,152.08,152.03,6.77746721]
[1751599765630,10.56826321,152.08,152.03,6.77746721]
[1751599766729,10.56826321,152.08,152.03,10.77015062]
[1751599770236,6.5755798,152.08,152.03,10.77015062]
[1751599770731,6.67516082,152.09,152.03,10.77015062]
[1751599770918,10.66784423,152.09,152.04,3.99268341]
[1751599771120,0.1,152.09,152.04,3.99268341]
[1751599771930,6.67514593,152.09,152.04,3.99268341]
[1751599774335,6.67514593,152.09,152.04,10.56959841]
[1751599781921,0.1,152.09,152.04,10.56959841]
[1751599782341,6.6752017,152.09,152.04,10.56959841]
[1751599782839,0.1,152.09,152.04,10.56959841]
[1751599784944,6.67507529,152.09,152.04,10.56959841]
[1751599785119,0.1,152.09,152.04,10.56959841]
[1751599789243,0.1,152.09,152.03,0.2]
[1751599789244,0.1,152.09,152.05,10.56932953]
[1751599795352,0.1,152.09,152.04,10.56989993]
[1751599796324,0.1,152.09,152.04,6.57721652]
[1751599796527,0.1,152.09,152.05,10.56919898]
[1751599799646,0.1,152.09,152.06,3.99268341]
[1751599799852,0.1,152.09,152.07,3.99268341]
[1751599800828,0.1,152.09,152.08,3.99268341]
[1751599801223,0.1,152.09,152.08,20.24774019]
[1751599801420,1.652,152.16,152.09,0.42648471]
[1751599801737,1.652,152.16,152.15,3.99268341]
[1751599801738,0.1,152.16,152.15,3.99268341]
[1751599802558,0.1,152.16,152.12,31.32890274]
[1751599802755,0.1,152.16,152.15,4.13484498]
[1751599802928,0.1,152.16,152.15,10.70730636]
[1751599804246,0.1,152.16,152.15,3.99268341]
[1751599804864,0.1,152.16,152.13,3.99268341]
[1751599805149,10.66481213,152.16,152.11,6.78]
[1751599805360,10.66481213,152.16,152.12,3.99268341]
[1751599807339,3.99268341,152.15,152.11,10.77268341]
[1751599809065,6.67212872,152.16,152.11,10.77268341]
[1751599809265,3.99268341,152.15,152.11,10.77268341]
[1751599810668,10.56514814,152.15,152.11,10.77268341]
[1751599812750,3.99268341,152.14,152.11,6.78]
[1751599813568,10.56514814,152.15,152.11,6.78]
[1751599813948,3.99268341,152.14,152.11,6.78]
[1751599814148,3.99268341,152.13,152.11,6.78]
[1751599814768,3.99268341,152.12,152.06,17.32861217]
[1751599815068,3.99268341,152.1,152.06,6.76]
[1751599815252,3.99268341,152.1,152.06,13.33632618]
[1751599815455,3.99268341,152.11,152.06,17.32900959]
[1751599815766,6.23249945,152.11,152.06,19.56882563]
[1751599815944,6.23249945,152.11,152.06,13.33632618]
[1751599816265,6.57332544,152.13,152.07,12.80799565]
[1751599816460,6.23249945,152.12,152.07,12.80799565]
[1751599818777,12.80627737,152.12,152.07,12.80799565]
[1751599820859,6.23249945,152.12,152.07,12.80799565]
[1751599821075,6.23249945,152.12,152.08,6.23249945]
[1751599821259,1.5624,152.14,152.09,6.23249945]
[1751599821260,8.13542992,152.14,152.09,6.23249945]
[1751599821461,6.23249945,152.13,152.09,6.23249945]
[1751599821852,6.23249945,152.13,152.08,6.37466102]
[1751599822879,8.13542992,152.14,152.09,12.80755369]
[1751599823095,6.23249945,152.13,152.09,12.80755369]
[1751599824374,8.13542992,152.14,152.09,12.80755369]
[1751599824375,1.5624,152.14,152.1,6.23249945]
[1751599824676,6.23249945,152.15,152.11,6.23249945]
[1751599826467,12.90470772,152.16,152.11,12.80663896]
[1751599826672,6.67220827,152.16,152.11,12.80663896]
[1751599827182,12.90470772,152.16,152.11,12.80663896]
[1751599830485,6.33249945,152.16,152.11,6.57413951]
[1751599830670,6.33249945,152.16,152.11,12.80663896]
[1751599831682,6.23249945,152.15,152.11,12.80663896]
[1751599833186,6.23249945,152.14,152.1,6.23249945]
[1751599833489,6.23249945,152.13,152.08,12.94998229]
[1751599836260,12.80587242,152.13,152.08,6.71748284]
[1751599836466,6.23249945,152.12,152.08,6.71748284]
[1751599836665,6.23249945,152.12,152.08,12.94998229]
[1751599837293,6.23249945,152.12,152.08,6.71748284]
[1751599837496,6.23249945,152.12,152.08,12.94998229]
[1751599837874,3.98788876,152.12,152.08,10.7053716]
[1751599840508,3.98788876,152.12,152.08,6.71748284]
[1751599840677,3.98788876,152.12,152.08,10.7053716]
[1751599841470,16.53152501,152.15,152.07,26.0]
[1751599841676,3.98788876,152.09,152.06,10.2553629]
[1751599841876,3.98788876,152.1,152.06,10.2553629]
[1751599842181,3.98788876,152.11,152.06,20.81928462]
[1751599842802,3.98788876,152.11,152.06,16.83139586]
[1751599842987,3.98788876,152.11,152.06,20.81928462]
[1751599843392,3.98788876,152.12,152.07,4.13005033]
[1751599844298,3.98788876,152.11,152.07,6.71783863]
[1751599847297,3.98788876,152.11,152.06,16.83153364]
[1751599847298,3.98788876,152.1,152.06,16.83153364]
[1751599847503,3.98788876,152.09,152.06,10.2553629]
[1751599849000,3.98788876,152.09,152.06,16.83159899]
[1751599851478,3.98788876,152.1,152.06,16.83159899]
[1751599852690,10.66258131,152.1,152.06,10.2553629]
[1751599853589,3.98788876,152.09,152.06,10.2553629]
[1751599854510,3.98788876,152.09,152.06,16.83166037]
[1751599855617,6.67464418,152.1,152.06,16.83166037]
[1751599855803,3.98788876,152.09,152.06,16.83166037]
[1751599856610,10.66253294,152.1,152.06,16.83166037]
[1751599857915,10.66253294,152.1,152.06,10.2553629]
[1751599858330,10.66253294,152.1,152.06,16.83169514]
[1751599858625,10.66253294,152.1,152.06,20.8195839]
[1751599860628,0.1,152.1,152.06,20.8195839]
[1751599860817,4.08788876,152.1,152.06,20.8195839]
[1751599861917,3.98788876,152.09,152.06,6.96]
[1751599866617,10.66267779,152.1,152.06,6.96]
[1751599867114,3.98788876,152.08,152.06,6.96]
[1751599867419,3.98788876,152.07,152.06,6.96]
[1751599869213,10.56380774,152.07,152.06,0.2]
[1751599885530,10.84813088,152.07,152.06,0.2]
[1751599885915,41.90827852,152.07,152.06,0.2]
[1751599887218,41.76611695,152.07,152.06,0.2]
[1751599888008,37.77822819,152.07,152.06,0.2]
[1751599888209,36.56380774,152.07,152.06,0.2]
[1751599894714,36.84813088,152.07,152.06,0.2]
[1751599895016,41.76426113,152.07,152.06,0.2]
[1751599895215,0.28432314,152.06,152.05,0.065773]
[1751599895423,9.18834215,152.06,152.05,0.065773]
[1751599896816,15.76469359,152.06,152.05,0.065773]
[1751599899244,6.57635144,152.06,152.05,0.065773]
[1751599899417,10.84856334,152.06,152.05,0.065773]
[1751599899623,10.84856334,152.06,152.05,1e-08]
[1751599899624,15.90539798,152.06,152.05,1e-08]
[1751599899822,49.08539798,152.06,152.05,1e-08]
[1751599904422,49.08539798,152.06,152.05,0.20000001]
[1751599905639,49.08317694,152.06,152.05,0.20000001]
[1751599911548,49.08317694,152.06,152.05,1e-08]
[1751599912735,49.08574662,152.06,152.05,1e-08]
[1751599915546,26.28432314,152.03,152.02,0.2]
[1751599915757,68.36723361,152.03,152.02,0.2]
[1751599916133,35.18723361,152.03,152.02,0.2]
[1751599916334,68.36723361,152.03,152.02,0.2]
[1751599917240,74.94488275,152.03,152.02,0.2]
[1751599920128,0.28432314,152.02,152.01,0.2]
[1751599920357,9.18723361,152.02,152.01,0.2]
[1751599922854,15.76531544,152.02,152.01,0.2]
[1751599938363,15.86531544,152.02,152.01,0.2]
[1751599941364,15.86531544,152.02,151.99,0.2]
[1751599941540,4.2722119,152.01,151.99,0.2]
[1751599942666,10.85072647,152.01,151.99,0.2]
[1751599943373,0.28432314,152.0,151.99,0.2]
[1751599943553,9.18723361,152.0,151.99,0.2]
[1751599945973,15.76618097,152.0,151.99,0.2]
[1751599948379,41.76618097,152.0,151.99,0.2]
[1751599953565,37.49396907,152.0,151.99,0.2]
[1751599955082,32.57894736,152.0,151.99,0.2]
[1751599955382,37.5069917,152.0,151.99,0.2]
[1751599956156,41.69488046,152.0,151.99,0.2]
[1751599956583,37.7069917,152.0,151.99,0.2]
[1751599956771,32.77894736,152.0,151.99,0.2]
[1751599957081,36.76683612,152.0,151.99,0.2]
[1751599959381,70.23115926,152.0,151.99,1e-08]
[1751599959691,37.71128592,152.0,151.99,1e-08]
[1751599959872,41.69917468,152.0,151.99,1e-08]
[1751599960071,37.71128592,152.0,151.99,1e-08]
[1751599960262,41.69917468,152.0,151.99,1e-08]
[1751599966700,41.69950772,152.0,151.99,1e-08]
[1751599989654,37.71161896,152.0,151.99,1e-08]
[1751599989957,32.77894736,152.0,151.99,1e-08]
[1751599990129,0.2,152.0,151.99,3.98788877]
[1751599993662,0.2,152.0,151.99,10.56726899]
[1751599993826,0.2,152.0,151.99,18.58196899]
[1751599995064,0.2,152.0,151.99,12.00258877]
[1751599995353,0.2,152.0,151.99,1.50930001]
[1751599996554,10.76683612,152.0,151.99,1e-08]
[1751600009094,11.05115926,152.0,151.99,1e-08]
[1751600009362,10.76683612,152.0,151.99,1e-08]
[1751600012041,15.68939191,152.0,151.99,1e-08]
[1751600013775,10.76683612,152.0,151.99,1e-08]
[1751600014268,6.77894736,152.0,151.99,1e-08]
[1751600017784,0.2,152.0,151.99,3.98788877]
[1751600017964,0.2,152.0,151.99,1e-08]
[1751600020272,6.77894736,152.0,151.99,1e-08]
[1751600022373,13.02077264,152.0,151.99,1e-08]
[1751600024378,6.77894736,152.0,151.99,1e-08]
[1751600030193,0.2,152.0,151.99,1e-08]
[1751600031607,0.2,152.0,151.99,6.24182529]
[1751600037295,0.2,152.0,151.99,7.88692529]
[1751600038294,0.2,152.0,151.99,14.46630551]
[1751600038668,0.2,152.0,151.99,14.89279022]
[1751600043483,0.2,152.0,151.99,21.1346155]
[1751600046288,0.2,152.0,151.99,14.89279022]
[1751600048209,0.2,152.0,151.99,14.60846708]
[1751600049874,0.2,152.0,151.99,12.96336708]
[1751600061816,0.2,152.0,151.99,10.71280825]
[1751600100848,0.2,152.0,151.99,6.7215418]
[1751600101044,0.2,152.0,151.99,10.71280825]
[1751600101354,0.1,152.02,152.0,0.14216157]
[1751600101654,0.1,152.06,152.02,26.14216157]
[1751600101955,0.1,152.06,152.05,3.99126645]
[1751600102156,0.1,152.06,152.05,4.13342802]
[1751600103043,0.1,152.06,152.05,10.71021197]
[1751600112944,0.1,152.06,152.05,6.71894552]
[1751600113144,0.1,152.06,152.05,4.13342802]
[1751600113760,0.1,152.06,152.05,10.71021197]
[1751600124663,0.1,152.06,152.05,4.13342802]
[1751600125370,0.123,152.07,152.05,4.13342802]
[1751600125674,0.123,152.07,152.06,3.99126645]
[1751600131873,0.123,152.07,152.05,3.99126645]
[1751600133469,0.123,152.07,152.06,3.99126645]
[1751600134462,0.123,152.07,152.05,3.99126645]
[1751600135556,0.123,152.07,152.06,3.99126645]
[1751600135958,0.123,152.07,152.06,4.13342802]
[1751600138568,0.123,152.07,152.06,10.70977946]
[1751600161205,0.123,152.07,152.05,0.2]
[1751600161375,0.123,152.07,152.05,4.19126645]
[1751600162098,0.123,152.07,152.06,3.99126645]
[1751600163278,12.34456138,152.07,152.05,0.2]
[1751600163594,15.54354929,152.06,152.05,0.2]
[1751600165302,22.11990073,152.06,152.05,0.2]
[1751600168404,17.19311789,152.06,152.05,0.2]
[1751600169599,13.20185144,152.06,152.05,0.2]
[1751600169986,17.19311789,152.06,152.05,0.2]
[1751600195321,10.56761789,152.06,152.05,0.2]
[1751600198630,6.57635144,152.06,152.05,0.2]
[1751600198810,10.56761789,152.06,152.05,0.2]
[1751600200430,6.57635144,152.06,152.05,0.2]
[1751600205524,10.56761789,152.06,152.05,0.2]
[1751600206229,17.42224415,152.06,152.05,1e-08]
[1751600206431,17.56440572,152.06,152.05,1e-08]
[1751600208326,23.70702463,152.06,152.05,1e-08]
[1751600209316,17.56440572,152.06,152.05,1e-08]
[1751600212761,23.70702463,152.06,152.05,1e-08]
[1751600213356,17.56440572,152.06,152.05,1e-08]
[1751600220059,23.70702463,152.06,152.05,1e-08]
[1751600224350,42.35667349,152.06,152.05,1e-08]
[1751600224557,36.21405458,152.06,152.05,1e-08]
[1751600224736,36.21405458,152.06,152.02,0.1]
[1751600224737,0.14216157,152.05,151.99,1e-08]
[1751600224940,3.99126645,152.0,151.99,1e-08]
[1751600226346,10.57021381,152.0,151.99,1e-08]
[1751600226565,6.57894736,152.0,151.99,1e-08]
[1751600234477,10.57021381,152.0,151.99,1e-08]
[1751600243090,6.57894736,152.0,151.99,1e-08]
[1751600253304,6.57894736,152.0,151.99,3.99126646]
[1751600253503,32.57865656,152.01,151.99,3.99126646]
[1751600253704,26.0,152.01,152.0,3.99126645]
[1751600254195,6.57827943,152.02,152.0,3.99126645]
[1751600258502,11.50670334,152.02,152.0,3.99126645]
[1751600258691,11.50670334,152.02,151.99,3.99126646]
[1751600259403,11.50670334,152.02,151.99,1e-08]
[1751600259594,3.99126645,152.01,151.99,1e-08]
[1751600259795,3.99126645,152.0,151.99,1e-08]
[1751600260703,8.91969036,152.0,151.99,1e-08]
[1751600260892,15.49863772,152.0,151.99,1e-08]
[1751600261093,41.49863772,152.0,151.99,1e-08]
[1751600266717,41.49863772,152.0,151.97,0.2]
[1751600266915,3.99126645,151.98,151.97,1e-08]
[1751600267107,36.57107958,151.98,151.97,1e-08]
[1751600267310,37.50823704,151.98,151.97,1e-08]
[1751600268417,41.49950349,151.98,151.97,1e-08]
[1751600269714,29.99126645,151.97,151.96,1e-08]
[1751600269922,34.91969036,151.97,151.96,1e-08]
[1751600270821,41.49993646,151.97,151.96,1e-08]
[1751600277420,41.49993646,151.97,151.95,1e-08]
[1751600277630,8.91969036,151.96,151.95,1e-08]
[1751600277807,29.99126645,151.96,151.95,1e-08]
[1751600278003,34.91969036,151.96,151.95,1e-08]
[1751600279230,74.68036948,151.96,151.94,1e-08]
[1751600279412,8.90426407,151.95,151.93,1e-08]
[1751600279611,3.99126645,151.94,151.93,1e-08]
[1751600280324,29.99126645,151.94,151.93,1e-08]
[1751600280515,34.90426407,151.94,151.93,1e-08]
[1751600280708,34.90426407,151.94,151.92,1e-08]
[1751600280911,3.99126645,151.93,151.92,1e-08]
[1751600281639,10.57324499,151.93,151.92,1e-08]
[1751600282831,10.57324499,151.93,151.91,1e-08]
[1751600282832,3.99126645,151.92,151.91,1e-08]
[1751600283010,8.9016119,151.92,151.91,1e-08]
[1751600283524,31.44908949,151.92,151.91,1e-08]
[1751600285423,45.61487761,151.92,151.91,1e-08]
[1751600285810,6.58241179,151.92,151.91,1e-08]
[1751600286035,10.57367824,151.92,151.91,1e-08]
[1751600287921,12.83192783,151.92,151.91,1e-08]
[1751600290051,38.83192783,151.92,151.91,1e-08]
[1751600295845,6.24951604,151.92,151.91,1e-08]